[Event "Titled Tuesday Blitz March 07 Early 2023"]
[White "Zahid, Sanatan"]
[Black "Reprintsev, Alexander"]
[WhiteFideId "10201963"]
[BlackFideId "14100541"]
[WhiteElo "1865"]
[BlackElo "2229"]
[Result "0-1"]
[Round "11"]
[TimeControl "180+2"]
[Date "2023.03.07"]
[WhiteClock "0:01:45"]
[BlackClock "0:01:17"]

1. e4 {[%clk 0:02:54]}  e5 {[%clk 0:02:58]} 2. Nf3 {[%clk 0:02:53]}  Nc6 {[%clk 0:02:58]} 3. Bc4 {[%clk 0:02:49]}  Nf6 {[%clk 0:02:52]} 4. Ng5 {[%clk 0:02:48]}  d5 {[%clk 0:02:52]} 5. exd5 {[%clk 0:02:49]}  Na5 {[%clk 0:02:52]} 6. Bb5+ {[%clk 0:02:50]}  Bd7 {[%clk 0:02:50]} 7. Bxd7+ {[%clk 0:02:31]}  Qxd7 {[%clk 0:02:49]} 8. Nc3 {[%clk 0:02:32]}  Nxd5 {[%clk 0:02:43]} 9. O-O {[%clk 0:02:30]}  Nxc3 {[%clk 0:02:42]} 10. dxc3 {[%clk 0:02:29]}  Qxd1 {[%clk 0:02:41]} 11. Rxd1 {[%clk 0:02:30]}  Be7 {[%clk 0:02:40]} 12. Nf3 {[%clk 0:02:29]}  Nc6 {[%clk 0:02:39]} 13. b4 {[%clk 0:02:27]}  a6 {[%clk 0:02:38]} 14. a3 {[%clk 0:02:28]}  Rd8 {[%clk 0:02:34]} 15. Be3 {[%clk 0:02:27]}  f5 {[%clk 0:02:28]} 16. g3 {[%clk 0:02:23]}  h6 {[%clk 0:02:26]} 17. c4 {[%clk 0:02:22]}  e4 {[%clk 0:02:16]} 18. Nd4 {[%clk 0:02:18]}  Nxd4 {[%clk 0:02:15]} 19. Rxd4 {[%clk 0:02:17]}  Bf6 {[%clk 0:02:11]} 20. Rxd8+ {[%clk 0:02:16]}  Kxd8 {[%clk 0:02:11]} 21. Rd1+ {[%clk 0:02:17]}  Kc8 {[%clk 0:02:11]} 22. Rd5 {[%clk 0:02:15]}  g6 {[%clk 0:02:09]} 23. Kf1 {[%clk 0:02:16]}  h5 {[%clk 0:02:08]} 24. h4 {[%clk 0:02:08]}  Rd8 {[%clk 0:02:07]} 25. Ke2 {[%clk 0:02:08]}  c6 {[%clk 0:02:06]} 26. Rxd8+ {[%clk 0:02:05]}  Kxd8 {[%clk 0:02:06]} 27. a4 {[%clk 0:02:06]}  Kd7 {[%clk 0:01:53]} 28. b5 {[%clk 0:02:06]}  Ke6 {[%clk 0:01:53]} 29. bxa6 {[%clk 0:02:03]}  bxa6 {[%clk 0:01:53]} 30. Bf4 {[%clk 0:02:03]}  Bd4 {[%clk 0:01:52]} 31. f3 {[%clk 0:02:02]}  Be5 {[%clk 0:01:43]} 32. Ke3 {[%clk 0:02:02]}  exf3 {[%clk 0:01:39]} 33. Kxf3 {[%clk 0:02:01]}  Bxf4 {[%clk 0:01:30]} 34. Kxf4 {[%clk 0:02:02]}  Kf6 {[%clk 0:01:28]} 35. a5 {[%clk 0:01:59]}  c5 {[%clk 0:01:26]} 36. Kf3 {[%clk 0:01:56]}  g5 {[%clk 0:01:26]} 37. hxg5+ {[%clk 0:01:42]}  Kxg5 {[%clk 0:01:26]} 38. c3 {[%clk 0:01:43]}  f4 {[%clk 0:01:18]} 39. gxf4+ {[%clk 0:01:44]}  Kf5 {[%clk 0:01:18]} 40. Ke3 {[%clk 0:01:43]}  h4 {[%clk 0:01:18]} 41. Kf3 {[%clk 0:01:43]}  h3 {[%clk 0:01:18]} 42. Kg3 {[%clk 0:01:43]}  h2 {[%clk 0:01:18]} 43. Kxh2 {[%clk 0:01:44]}  Kxf4 {[%clk 0:01:19]} 44. Kg2 {[%clk 0:01:42]}  Ke3 {[%clk 0:01:19]} 45. Kf1 {[%clk 0:01:41]}  Kd3 {[%clk 0:01:19]} 46. Kf2 {[%clk 0:01:42]}  Kxc3 {[%clk 0:01:18]} 47. Ke3 {[%clk 0:01:43]}  Kxc4 {[%clk 0:01:18]} 48. Ke4 {[%clk 0:01:43]}  Kb3 {[%clk 0:01:16]} 49. Kd5 {[%clk 0:01:44]}  c4 {[%clk 0:01:17]} 50. Kc5 {[%clk 0:01:45]}  c3 {[%clk 0:01:17]} 0-1


[Site "https://www.chess.com"]

[Event "Titled Tuesday Blitz March 07 Early 2023"]
[White "Hirneise, Jens"]
[Black "Karthik Rajaa"]
[WhiteFideId "24614734"]
[BlackFideId "25035215"]
[WhiteElo "2345"]
[BlackElo "2215"]
[Result "1-0"]
[Round "11"]
[TimeControl "180+2"]
[Date "2023.03.07"]
[WhiteClock "0:00:15"]
[BlackClock "0:00:11"]

1. d4 {[%clk 0:03:00]}  Nf6 {[%clk 0:02:59]} 2. c4 {[%clk 0:02:57]}  g6 {[%clk 0:02:59]} 3. Nc3 {[%clk 0:02:54]}  Bg7 {[%clk 0:03:00]} 4. Bf4 {[%clk 0:02:54]}  O-O {[%clk 0:02:59]} 5. Qd2 {[%clk 0:02:51]}  d6 {[%clk 0:02:58]} 6. Bh6 {[%clk 0:02:48]}  e5 {[%clk 0:02:58]} 7. Bxg7 {[%clk 0:02:45]}  Kxg7 {[%clk 0:02:59]} 8. d5 {[%clk 0:02:40]}  a5 {[%clk 0:02:58]} 9. e3 {[%clk 0:02:34]}  Na6 {[%clk 0:02:58]} 10. Bd3 {[%clk 0:02:30]}  Nc5 {[%clk 0:02:57]} 11. Bc2 {[%clk 0:02:30]}  c6 {[%clk 0:02:56]} 12. dxc6 {[%clk 0:02:24]}  bxc6 {[%clk 0:02:56]} 13. O-O-O {[%clk 0:02:25]}  Nb7 {[%clk 0:02:47]} 14. Nf3 {[%clk 0:02:02]}  Be6 {[%clk 0:02:45]} 15. c5 {[%clk 0:02:00]}  Nxc5 {[%clk 0:01:52]} 16. Qxd6 {[%clk 0:01:58]}  Qxd6 {[%clk 0:01:52]} 17. Rxd6 {[%clk 0:01:59]}  Ng4 {[%clk 0:01:52]} 18. Rf1 {[%clk 0:01:38]}  Bc4 {[%clk 0:01:40]} 19. Rg1 {[%clk 0:01:26]}  Rac8 {[%clk 0:01:00]} 20. h3 {[%clk 0:01:23]}  Nxf2 {[%clk 0:01:00]} 21. Nxe5 {[%clk 0:01:23]}  Be6 {[%clk 0:00:38]} 22. Rf1 {[%clk 0:01:17]}  Nxh3 {[%clk 0:00:18]} 23. gxh3 {[%clk 0:01:17]}  Bxh3 {[%clk 0:00:19]} 24. Rh1 {[%clk 0:01:04]}  Bg2 {[%clk 0:00:16]} 25. Rg1 {[%clk 0:01:03]}  Bh3 {[%clk 0:00:16]} 26. Rxc6 {[%clk 0:00:52]}  Rxc6 {[%clk 0:00:16]} 27. Nxc6 {[%clk 0:00:52]}  Re8 {[%clk 0:00:16]} 28. e4 {[%clk 0:00:50]}  Ne6 {[%clk 0:00:15]} 29. Nxa5 {[%clk 0:00:44]}  Nd4 {[%clk 0:00:15]} 30. Bd3 {[%clk 0:00:42]}  Ra8 {[%clk 0:00:13]} 31. b4 {[%clk 0:00:41]}  Rb8 {[%clk 0:00:13]} 32. a3 {[%clk 0:00:39]}  Be6 {[%clk 0:00:11]} 33. Kb2 {[%clk 0:00:37]}  Nf3 {[%clk 0:00:11]} 34. Rg3 {[%clk 0:00:33]}  Ne5 {[%clk 0:00:12]} 35. Bf1 {[%clk 0:00:31]}  h5 {[%clk 0:00:12]} 36. Nd5 {[%clk 0:00:28]}  h4 {[%clk 0:00:12]} 37. Rc3 {[%clk 0:00:28]}  Rh8 {[%clk 0:00:11]} 38. Nf4 {[%clk 0:00:26]}  Bg4 {[%clk 0:00:11]} 39. b5 {[%clk 0:00:24]}  g5 {[%clk 0:00:12]} 40. Nh3 {[%clk 0:00:21]}  Rb8 {[%clk 0:00:12]} 41. Nxg5 {[%clk 0:00:18]}  Bd7 {[%clk 0:00:12]} 42. a4 {[%clk 0:00:17]}  Kf6 {[%clk 0:00:12]} 43. Nf3 {[%clk 0:00:16]}  Ra8 {[%clk 0:00:13]} 44. Nxe5 {[%clk 0:00:15]}  Kxe5 {[%clk 0:00:14]} 45. Nc4+ {[%clk 0:00:16]}  Kxe4 {[%clk 0:00:13]} 46. Nb6 {[%clk 0:00:16]}  Rd8 {[%clk 0:00:12]} 47. Rd3 {[%clk 0:00:16]}  h3 {[%clk 0:00:11]} 48. Rxd7 {[%clk 0:00:13]}  Rxd7 {[%clk 0:00:06]} 49. Nxd7 {[%clk 0:00:14]}  h2 {[%clk 0:00:07]} 50. Bg2+ {[%clk 0:00:15]}  Ke3 {[%clk 0:00:08]} 51. b6 {[%clk 0:00:15]}  f5 {[%clk 0:00:09]} 52. b7 {[%clk 0:00:15]}  f4 {[%clk 0:00:10]} 53. b8=Q {[%clk 0:00:15]}  f3 {[%clk 0:00:11]} 54. Qb6+ {[%clk 0:00:15]} 1-0


[Site "https://www.chess.com"]

[Event "Titled Tuesday Blitz March 07 Early 2023"]
[White "Ronka, Erik"]
[Black "Fiorito, Francisco"]
[WhiteFideId "505080"]
[BlackFideId "180165"]
[WhiteElo "2264"]
[BlackElo "2341"]
[Result "0-1"]
[Round "11"]
[TimeControl "180+2"]
[Date "2023.03.07"]
[WhiteClock "0:00:02"]
[BlackClock "0:00:04"]

1. e4 {[%clk 0:02:54]}  c5 {[%clk 0:02:59]} 2. Nf3 {[%clk 0:02:54]}  Nc6 {[%clk 0:03:00]} 3. d4 {[%clk 0:02:54]}  cxd4 {[%clk 0:03:00]} 4. Nxd4 {[%clk 0:02:55]}  g6 {[%clk 0:03:01]} 5. Nc3 {[%clk 0:02:54]}  Bg7 {[%clk 0:03:01]} 6. Be3 {[%clk 0:02:54]}  Nf6 {[%clk 0:03:02]} 7. Nxc6 {[%clk 0:02:55]}  bxc6 {[%clk 0:02:49]} 8. e5 {[%clk 0:02:55]}  Ng8 {[%clk 0:02:49]} 9. Bd4 {[%clk 0:02:55]}  Qa5 {[%clk 0:02:49]} 10. Qe2 {[%clk 0:02:53]}  f6 {[%clk 0:02:48]} 11. exf6 {[%clk 0:02:10]}  Nxf6 {[%clk 0:02:44]} 12. O-O-O {[%clk 0:02:09]}  d5 {[%clk 0:02:28]} 13. Re1 {[%clk 0:01:48]}  O-O {[%clk 0:02:27]} 14. h4 {[%clk 0:01:34]}  Bf5 {[%clk 0:02:22]} 15. f3 {[%clk 0:01:26]}  Rfe8 {[%clk 0:01:03]} 16. g4 {[%clk 0:01:09]}  e5 {[%clk 0:01:00]} 17. Be3 {[%clk 0:00:39]}  d4 {[%clk 0:00:45]} 18. gxf5 {[%clk 0:00:39]}  dxc3 {[%clk 0:00:45]} 19. Qc4+ {[%clk 0:00:39]}  Nd5 {[%clk 0:00:44]} 20. bxc3 {[%clk 0:00:29]}  Qa3+ {[%clk 0:00:43]} 21. Kd2 {[%clk 0:00:23]}  e4 {[%clk 0:00:43]} 22. Bd4 {[%clk 0:00:13]}  Rad8 {[%clk 0:00:29]} 23. fxe4 {[%clk 0:00:12]}  Bh6+ {[%clk 0:00:20]} 24. Kd3 {[%clk 0:00:09]}  c5 {[%clk 0:00:08]} 25. exd5 {[%clk 0:00:07]}  Rxe1 {[%clk 0:00:07]} 26. d6+ {[%clk 0:00:07]}  Kf8 {[%clk 0:00:07]} 27. fxg6 {[%clk 0:00:05]}  hxg6 {[%clk 0:00:03]} 28. Bg2 {[%clk 0:00:01]}  Rxh1 {[%clk 0:00:03]} 29. Bxh1 {[%clk 0:00:02]}  cxd4 {[%clk 0:00:04]} 0-1


[Site "https://www.chess.com"]

[Event "Titled Tuesday Blitz March 07 Early 2023"]
[White "Lewtak, Damian"]
[Black "Staudenhocker43"]
[WhiteFideId "1141724"]
[WhiteElo "2302"]
[BlackElo "2450"]
[Result "1-0"]
[Round "11"]
[TimeControl "180+2"]
[Date "2023.03.07"]
[WhiteClock "0:00:44"]
[BlackClock "0:00:45"]

1. e4 {[%clk 0:03:00]}  e5 {[%clk 0:02:59]} 2. Nf3 {[%clk 0:03:01]}  Nf6 {[%clk 0:03:00]} 3. Nxe5 {[%clk 0:03:00]}  d6 {[%clk 0:03:00]} 4. Nf3 {[%clk 0:03:01]}  Nxe4 {[%clk 0:03:01]} 5. c3 {[%clk 0:03:02]}  d5 {[%clk 0:03:01]} 6. d3 {[%clk 0:03:02]}  Nf6 {[%clk 0:03:01]} 7. Be2 {[%clk 0:03:02]}  Bd6 {[%clk 0:03:01]} 8. O-O {[%clk 0:03:02]}  O-O {[%clk 0:03:01]} 9. Bg5 {[%clk 0:03:03]}  h6 {[%clk 0:03:01]} 10. Bh4 {[%clk 0:03:03]}  Re8 {[%clk 0:03:00]} 11. Nbd2 {[%clk 0:03:03]}  c6 {[%clk 0:03:00]} 12. Re1 {[%clk 0:03:03]}  Nbd7 {[%clk 0:02:59]} 13. Bg3 {[%clk 0:03:02]}  Nf8 {[%clk 0:02:59]} 14. Bxd6 {[%clk 0:02:57]}  Qxd6 {[%clk 0:03:00]} 15. Bf1 {[%clk 0:02:58]}  Bf5 {[%clk 0:02:58]} 16. Qb3 {[%clk 0:02:56]}  Qc7 {[%clk 0:02:56]} 17. h3 {[%clk 0:02:50]}  Ng6 {[%clk 0:02:48]} 18. Qa4 {[%clk 0:02:45]}  a6 {[%clk 0:02:35]} 19. Qd4 {[%clk 0:02:41]}  c5 {[%clk 0:02:31]} 20. Qa4 {[%clk 0:02:41]}  Bd7 {[%clk 0:02:30]} 21. Qa3 {[%clk 0:02:41]}  a5 {[%clk 0:02:20]} 22. d4 {[%clk 0:02:32]}  c4 {[%clk 0:02:15]} 23. b3 {[%clk 0:02:21]}  cxb3 {[%clk 0:02:03]} 24. Qxb3 {[%clk 0:02:22]}  Rac8 {[%clk 0:02:02]} 25. c4 {[%clk 0:02:11]}  Bc6 {[%clk 0:01:46]} 26. c5 {[%clk 0:02:06]}  Ne4 {[%clk 0:01:44]} 27. Rab1 {[%clk 0:02:01]}  Rcd8 {[%clk 0:01:33]} 28. Qb6 {[%clk 0:01:49]}  Qf4 {[%clk 0:01:29]} 29. Qb2 {[%clk 0:01:26]}  Re7 {[%clk 0:01:15]} 30. g3 {[%clk 0:01:22]}  Qf6 {[%clk 0:01:14]} 31. Bg2 {[%clk 0:00:58]}  Rde8 {[%clk 0:01:14]} 32. Qc2 {[%clk 0:00:48]}  a4 {[%clk 0:00:56]} 33. Re3 {[%clk 0:00:46]}  Nxd2 {[%clk 0:00:53]} 34. Qxd2 {[%clk 0:00:47]}  Rxe3 {[%clk 0:00:53]} 35. fxe3 {[%clk 0:00:47]}  Qg5 {[%clk 0:00:53]} 36. Kf2 {[%clk 0:00:46]}  Ne7 {[%clk 0:00:45]} 37. Nxg5 {[%clk 0:00:44]} 1-0


[Site "https://www.chess.com"]

[Event "Titled Tuesday Blitz March 07 Early 2023"]
[White "Slade, Theodore"]
[Black "Vlassov, Nikolai"]
[WhiteFideId "426547"]
[BlackFideId "4103360"]
[WhiteElo "1964"]
[BlackElo "2324"]
[Result "1-0"]
[Round "11"]
[TimeControl "180+2"]
[Date "2023.03.07"]
[WhiteClock "0:00:04"]
[BlackClock "0:00:01"]

1. d4 {[%clk 0:03:00]}  Nf6 {[%clk 0:02:59]} 2. c4 {[%clk 0:03:01]}  Nc6 {[%clk 0:02:59]} 3. Nf3 {[%clk 0:03:01]}  e6 {[%clk 0:02:59]} 4. Nc3 {[%clk 0:03:00]}  Bb4 {[%clk 0:02:59]} 5. Qc2 {[%clk 0:03:00]}  d6 {[%clk 0:02:59]} 6. Bd2 {[%clk 0:02:57]}  O-O {[%clk 0:02:58]} 7. e3 {[%clk 0:02:58]}  Qe7 {[%clk 0:02:57]} 8. Be2 {[%clk 0:02:56]}  e5 {[%clk 0:02:57]} 9. a3 {[%clk 0:02:53]}  Bxc3 {[%clk 0:02:57]} 10. Bxc3 {[%clk 0:02:53]}  Bg4 {[%clk 0:02:56]} 11. dxe5 {[%clk 0:02:51]}  dxe5 {[%clk 0:02:56]} 12. h3 {[%clk 0:02:44]}  Bh5 {[%clk 0:02:55]} 13. O-O {[%clk 0:02:37]}  Rfe8 {[%clk 0:02:52]} 14. b4 {[%clk 0:02:29]}  e4 {[%clk 0:02:39]} 15. Nd4 {[%clk 0:02:26]}  Bxe2 {[%clk 0:02:37]} 16. Nxc6 {[%clk 0:02:19]}  bxc6 {[%clk 0:02:35]} 17. Qxe2 {[%clk 0:02:19]}  a5 {[%clk 0:02:27]} 18. bxa5 {[%clk 0:02:16]}  Nd7 {[%clk 0:02:20]} 19. Qg4 {[%clk 0:02:10]}  f6 {[%clk 0:02:15]} 20. Rfd1 {[%clk 0:02:07]}  Nc5 {[%clk 0:02:09]} 21. Bb4 {[%clk 0:02:03]}  Qe5 {[%clk 0:02:06]} 22. Bxc5 {[%clk 0:01:58]}  Qxc5 {[%clk 0:02:05]} 23. Rd7 {[%clk 0:01:58]}  Re7 {[%clk 0:02:05]} 24. Rad1 {[%clk 0:01:52]}  Rae8 {[%clk 0:01:59]} 25. Rxe7 {[%clk 0:01:34]}  Rxe7 {[%clk 0:01:56]} 26. Rd8+ {[%clk 0:01:34]}  Kf7 {[%clk 0:01:56]} 27. a6 {[%clk 0:01:24]}  Qxa3 {[%clk 0:01:54]} 28. Qh5+ {[%clk 0:01:19]}  Ke6 {[%clk 0:01:53]} 29. Qg4+ {[%clk 0:01:11]}  f5 {[%clk 0:01:41]} 30. Qh5 {[%clk 0:00:50]}  Qxa6 {[%clk 0:01:38]} 31. Qxh7 {[%clk 0:00:49]}  Qa1+ {[%clk 0:01:32]} 32. Kh2 {[%clk 0:00:49]}  Qe5+ {[%clk 0:01:32]} 33. g3 {[%clk 0:00:50]}  Qf6 {[%clk 0:01:30]} 34. Qg8+ {[%clk 0:00:48]}  Qf7 {[%clk 0:01:29]} 35. Qh7 {[%clk 0:00:43]}  Ke5 {[%clk 0:01:20]} 36. Qh4 {[%clk 0:00:38]}  Rd7 {[%clk 0:01:01]} 37. Qf4+ {[%clk 0:00:35]}  Kf6 {[%clk 0:01:01]} 38. Rh8 {[%clk 0:00:27]}  Qxc4 {[%clk 0:00:52]} 39. Rf8+ {[%clk 0:00:25]}  Rf7 {[%clk 0:00:51]} 40. Qh4+ {[%clk 0:00:23]}  Ke6 {[%clk 0:00:42]} 41. Re8+ {[%clk 0:00:23]}  Kd6 {[%clk 0:00:36]} 42. Qd8+ {[%clk 0:00:23]}  Rd7 {[%clk 0:00:34]} 43. Qg5 {[%clk 0:00:20]}  Qf7 {[%clk 0:00:29]} 44. Qf4+ {[%clk 0:00:20]}  Kc5 {[%clk 0:00:27]} 45. Qe5+ {[%clk 0:00:20]}  Rd5 {[%clk 0:00:22]} 46. Qc3+ {[%clk 0:00:21]}  Kd6 {[%clk 0:00:22]} 47. Qb4+ {[%clk 0:00:22]}  c5 {[%clk 0:00:21]} 48. Qa4 {[%clk 0:00:20]}  Qd7 {[%clk 0:00:16]} 49. Qa8 {[%clk 0:00:18]}  c4 {[%clk 0:00:07]} 50. Rd8 {[%clk 0:00:19]}  Qxd8 {[%clk 0:00:06]} 51. Qxd8+ {[%clk 0:00:19]}  Kc6 {[%clk 0:00:07]} 52. Qe8+ {[%clk 0:00:19]}  Kb6 {[%clk 0:00:06]} 53. Qe6+ {[%clk 0:00:18]}  Kc5 {[%clk 0:00:07]} 54. Qe7+ {[%clk 0:00:18]}  Kb6 {[%clk 0:00:06]} 55. Qxg7 {[%clk 0:00:18]}  Rd3 {[%clk 0:00:03]} 56. Qb2+ {[%clk 0:00:17]}  Kc5 {[%clk 0:00:03]} 57. Qe5+ {[%clk 0:00:16]}  Kb4 {[%clk 0:00:03]} 58. Qxc7 {[%clk 0:00:15]}  c3 {[%clk 0:00:04]} 59. Qb6+ {[%clk 0:00:16]}  Kc4 {[%clk 0:00:04]} 60. Qc6+ {[%clk 0:00:16]}  Kb3 {[%clk 0:00:04]} 61. Qb5+ {[%clk 0:00:16]}  Ka2 {[%clk 0:00:03]} 62. Qa5+ {[%clk 0:00:16]}  Kb3 {[%clk 0:00:03]} 63. Qb5+ {[%clk 0:00:16]}  Ka3 {[%clk 0:00:04]} 64. Qxf5 {[%clk 0:00:17]}  c2 {[%clk 0:00:03]} 65. Qc5+ {[%clk 0:00:18]}  Kb2 {[%clk 0:00:02]} 66. Qb4+ {[%clk 0:00:18]}  Ka2 {[%clk 0:00:02]} 67. Qxe4 {[%clk 0:00:16]}  Rc3 {[%clk 0:00:02]} 68. Qa4+ {[%clk 0:00:15]}  Kb2 {[%clk 0:00:02]} 69. Qb4+ {[%clk 0:00:16]}  Rb3 {[%clk 0:00:01]} 70. Qd2 {[%clk 0:00:16]}  Kb1 {[%clk 0:00:02]} 71. h4 {[%clk 0:00:14]}  c1=Q {[%clk 0:00:02]} 72. Qxc1+ {[%clk 0:00:15]}  Kxc1 {[%clk 0:00:02]} 73. h5 {[%clk 0:00:15]}  Kd2 {[%clk 0:00:02]} 74. g4 {[%clk 0:00:14]}  Kd3 {[%clk 0:00:02]} 75. Kg3 {[%clk 0:00:12]}  Ke4 {[%clk 0:00:02]} 76. Kh4 {[%clk 0:00:10]}  Ke5 {[%clk 0:00:02]} 77. Kg5 {[%clk 0:00:10]}  Rb8 {[%clk 0:00:02]} 78. h6 {[%clk 0:00:07]}  Rg8+ {[%clk 0:00:03]} 79. Kh5 {[%clk 0:00:08]}  Kf6 {[%clk 0:00:03]} 80. f4 {[%clk 0:00:08]}  Re8 {[%clk 0:00:03]} 81. g5+ {[%clk 0:00:08]}  Kf7 {[%clk 0:00:04]} 82. h7 {[%clk 0:00:08]}  Kg7 {[%clk 0:00:04]} 83. g6 {[%clk 0:00:09]}  Rxe3 {[%clk 0:00:03]} 84. f5 {[%clk 0:00:07]}  Rf3 {[%clk 0:00:03]} 85. Kg5 {[%clk 0:00:07]}  Rg3+ {[%clk 0:00:04]} 86. Kf4 {[%clk 0:00:08]}  Rh3 {[%clk 0:00:04]} 87. Ke5 {[%clk 0:00:05]}  Rh1 {[%clk 0:00:03]} 88. Kf4 {[%clk 0:00:04]}  Rf1+ {[%clk 0:00:02]} 89. Kg5 {[%clk 0:00:05]}  Rg1+ {[%clk 0:00:03]} 90. Kh5 {[%clk 0:00:05]}  Rh1+ {[%clk 0:00:02]} 91. Kg5 {[%clk 0:00:06]}  Rg1+ {[%clk 0:00:02]} 92. Kf4 {[%clk 0:00:06]}  Rh1 {[%clk 0:00:01]} 93. Ke5 {[%clk 0:00:06]}  Re1+ {[%clk 0:00:01]} 94. Kd6 {[%clk 0:00:07]}  Rd1+ {[%clk 0:00:02]} 95. Ke6 {[%clk 0:00:07]}  Re1+ {[%clk 0:00:02]} 96. Kd5 {[%clk 0:00:07]}  Rh1 {[%clk 0:00:02]} 97. Ke4 {[%clk 0:00:08]}  Re1+ {[%clk 0:00:03]} 98. Kf3 {[%clk 0:00:08]}  Re8 {[%clk 0:00:03]} 99. Kg4 {[%clk 0:00:08]}  Kf6 {[%clk 0:00:03]} 100. Kh5 {[%clk 0:00:08]}  Kg7 {[%clk 0:00:03]} 101. Kg5 {[%clk 0:00:08]}  Re5 {[%clk 0:00:04]} 102. Kf4 {[%clk 0:00:08]}  Re8 {[%clk 0:00:04]} 103. Kg4 {[%clk 0:00:08]}  Kf6 {[%clk 0:00:03]} 104. Kh5 {[%clk 0:00:07]}  Kg7 {[%clk 0:00:02]} 105. f6+ {[%clk 0:00:03]}  Kxf6 {[%clk 0:00:01]} 106. Kh6 {[%clk 0:00:04]} 1-0


[Site "https://www.chess.com"]

[Event "Titled Tuesday Blitz March 07 Early 2023"]
[White "Sielecki, Christof"]
[Black "Shubenkova, Veronika"]
[WhiteFideId "4620437"]
[BlackFideId "44124040"]
[WhiteElo "2443"]
[BlackElo "2027"]
[Result "1/2-1/2"]
[Round "11"]
[TimeControl "180+2"]
[Date "2023.03.07"]
[WhiteClock "0:00:06"]
[BlackClock "0:01:19"]

1. e4 {[%clk 0:02:55]}  e6 {[%clk 0:02:59]} 2. d4 {[%clk 0:02:51]}  d5 {[%clk 0:02:59]} 3. Nd2 {[%clk 0:02:48]}  Nf6 {[%clk 0:02:59]} 4. e5 {[%clk 0:02:48]}  Nfd7 {[%clk 0:02:59]} 5. c3 {[%clk 0:02:49]}  c5 {[%clk 0:02:59]} 6. f4 {[%clk 0:02:49]}  Nc6 {[%clk 0:02:59]} 7. Ndf3 {[%clk 0:02:49]}  a6 {[%clk 0:02:58]} 8. Bd3 {[%clk 0:02:48]}  b5 {[%clk 0:02:58]} 9. Ne2 {[%clk 0:02:48]}  Qb6 {[%clk 0:02:58]} 10. O-O {[%clk 0:02:46]}  g6 {[%clk 0:02:58]} 11. Kh1 {[%clk 0:02:46]}  Be7 {[%clk 0:02:59]} 12. Be3 {[%clk 0:02:44]}  c4 {[%clk 0:02:58]} 13. Bc2 {[%clk 0:02:43]}  a5 {[%clk 0:02:59]} 14. g4 {[%clk 0:02:41]}  Ba6 {[%clk 0:02:57]} 15. f5 {[%clk 0:02:41]}  gxf5 {[%clk 0:02:56]} 16. gxf5 {[%clk 0:02:41]}  O-O-O {[%clk 0:02:56]} 17. Nf4 {[%clk 0:02:39]}  Ncxe5 {[%clk 0:02:53]} 18. Nxe5 {[%clk 0:02:28]}  Nxe5 {[%clk 0:02:53]} 19. fxe6 {[%clk 0:02:24]}  fxe6 {[%clk 0:02:52]} 20. Nxe6 {[%clk 0:02:23]}  Rdg8 {[%clk 0:02:46]} 21. Bf5 {[%clk 0:02:12]}  Nd7 {[%clk 0:02:41]} 22. Nc5 {[%clk 0:02:08]}  Bxc5 {[%clk 0:02:40]} 23. dxc5 {[%clk 0:02:07]}  Qc6 {[%clk 0:02:37]} 24. Bd4 {[%clk 0:01:49]}  Bb7 {[%clk 0:02:34]} 25. Qf3 {[%clk 0:01:16]}  Kb8 {[%clk 0:02:31]} 26. Bxd7 {[%clk 0:00:45]}  Qxd7 {[%clk 0:02:28]} 27. Rae1 {[%clk 0:00:43]}  Re8 {[%clk 0:02:15]} 28. Qf4+ {[%clk 0:00:27]}  Ka8 {[%clk 0:02:13]} 29. Qd6 {[%clk 0:00:19]}  Qc8 {[%clk 0:02:02]} 30. c6 {[%clk 0:00:17]}  Qxc6 {[%clk 0:02:00]} 31. Qxc6 {[%clk 0:00:17]}  Bxc6 {[%clk 0:02:00]} 32. Bxh8 {[%clk 0:00:16]}  Rxh8 {[%clk 0:01:59]} 33. Re6 {[%clk 0:00:16]}  Bb7 {[%clk 0:01:58]} 34. Kg1 {[%clk 0:00:14]}  Rg8+ {[%clk 0:01:57]} 35. Kf2 {[%clk 0:00:15]}  b4 {[%clk 0:01:52]} 36. Rfe1 {[%clk 0:00:15]}  Ka7 {[%clk 0:01:47]} 37. Re7 {[%clk 0:00:14]}  Rf8+ {[%clk 0:01:46]} 38. Kg3 {[%clk 0:00:14]}  Rg8+ {[%clk 0:01:45]} 39. Kf4 {[%clk 0:00:14]}  Rf8+ {[%clk 0:01:45]} 40. Kg5 {[%clk 0:00:15]}  Rg8+ {[%clk 0:01:45]} 41. Kh6 {[%clk 0:00:15]}  Rg2 {[%clk 0:01:44]} 42. Rd7 {[%clk 0:00:12]}  Rxh2+ {[%clk 0:01:44]} 43. Kg7 {[%clk 0:00:13]}  bxc3 {[%clk 0:01:44]} 44. bxc3 {[%clk 0:00:13]}  Rb2 {[%clk 0:01:42]} 45. Ree7 {[%clk 0:00:12]}  a4 {[%clk 0:01:42]} 46. Kxh7 {[%clk 0:00:12]}  Ka6 {[%clk 0:01:41]} 47. Rd6+ {[%clk 0:00:12]}  Ka7 {[%clk 0:01:41]} 48. Rxd5 {[%clk 0:00:11]}  Rxa2 {[%clk 0:01:41]} 49. Rb5 {[%clk 0:00:11]}  Rh2+ {[%clk 0:01:39]} 50. Kg7 {[%clk 0:00:11]}  Rg2+ {[%clk 0:01:39]} 51. Kf8 {[%clk 0:00:12]}  a3 {[%clk 0:01:22]} 52. Rexb7+ {[%clk 0:00:11]}  Ka6 {[%clk 0:01:22]} 53. R5b6+ {[%clk 0:00:11]}  Ka5 {[%clk 0:01:22]} 54. Rb5+ {[%clk 0:00:10]}  Ka6 {[%clk 0:01:22]} 55. R7b6+ {[%clk 0:00:10]}  Ka7 {[%clk 0:01:22]} 56. Rb4 {[%clk 0:00:04]}  a2 {[%clk 0:01:21]} 57. R6b5 {[%clk 0:00:04]}  Ka6 {[%clk 0:01:20]} 58. Rb8 {[%clk 0:00:04]}  Ka7 {[%clk 0:01:19]} 59. R8b7+ {[%clk 0:00:04]}  Ka6 {[%clk 0:01:19]} 60. R7b6+ {[%clk 0:00:05]}  Ka7 {[%clk 0:01:19]} 61. R6b5 {[%clk 0:00:05]}  Ka6 {[%clk 0:01:19]} 62. Rb6+ {[%clk 0:00:06]}  Ka7 {[%clk 0:01:19]} 1/2-1/2


[Site "https://www.chess.com"]

[Event "Titled Tuesday Blitz March 07 Early 2023"]
[White "Jakubowski, Krzysztof"]
[Black "Zhukova, Natalia"]
[WhiteFideId "1112848"]
[BlackFideId "14101513"]
[WhiteElo "2359"]
[BlackElo "2297"]
[Result "1-0"]
[Round "11"]
[TimeControl "180+2"]
[Date "2023.03.07"]
[WhiteClock "0:00:13"]
[BlackClock "0:00:01"]

1. e4 {[%clk 0:02:56]}  e5 {[%clk 0:02:59]} 2. Nf3 {[%clk 0:02:55]}  Nc6 {[%clk 0:02:59]} 3. Bc4 {[%clk 0:02:54]}  Nf6 {[%clk 0:02:54]} 4. Ng5 {[%clk 0:02:53]}  d5 {[%clk 0:02:53]} 5. exd5 {[%clk 0:02:53]}  Na5 {[%clk 0:02:53]} 6. Bb5+ {[%clk 0:02:53]}  c6 {[%clk 0:02:53]} 7. dxc6 {[%clk 0:02:54]}  bxc6 {[%clk 0:02:52]} 8. Bd3 {[%clk 0:02:53]}  h6 {[%clk 0:02:51]} 9. Ne4 {[%clk 0:02:53]}  Nd5 {[%clk 0:02:50]} 10. O-O {[%clk 0:02:51]}  Nf4 {[%clk 0:02:44]} 11. Be2 {[%clk 0:02:28]}  Be7 {[%clk 0:02:17]} 12. d3 {[%clk 0:02:12]}  Nxe2+ {[%clk 0:02:14]} 13. Qxe2 {[%clk 0:02:12]}  O-O {[%clk 0:02:15]} 14. Nbc3 {[%clk 0:01:58]}  c5 {[%clk 0:02:15]} 15. f4 {[%clk 0:01:57]}  Nc6 {[%clk 0:02:08]} 16. fxe5 {[%clk 0:01:55]}  Nxe5 {[%clk 0:02:07]} 17. Be3 {[%clk 0:01:50]}  Ng4 {[%clk 0:02:01]} 18. Kh1 {[%clk 0:01:44]}  f5 {[%clk 0:01:32]} 19. Nf2 {[%clk 0:01:27]}  Nxe3 {[%clk 0:01:11]} 20. Qxe3 {[%clk 0:01:26]}  Bb7 {[%clk 0:01:06]} 21. Rae1 {[%clk 0:01:25]}  Rf7 {[%clk 0:00:35]} 22. Nh3 {[%clk 0:01:18]}  Qb6 {[%clk 0:00:32]} 23. Nf4 {[%clk 0:01:11]}  Bg5 {[%clk 0:00:24]} 24. Qg3 {[%clk 0:01:01]}  Qxb2 {[%clk 0:00:21]} 25. Nfd5 {[%clk 0:00:53]}  Qxc2 {[%clk 0:00:20]} 26. h4 {[%clk 0:00:46]}  Bf6 {[%clk 0:00:09]} 27. Rc1 {[%clk 0:00:39]}  Qb2 {[%clk 0:00:04]} 28. Rb1 {[%clk 0:00:37]}  Qa3 {[%clk 0:00:04]} 29. Nxf6+ {[%clk 0:00:36]}  Kh8 {[%clk 0:00:03]} 30. Nfd5 {[%clk 0:00:31]}  Rd8 {[%clk 0:00:04]} 31. Qe5 {[%clk 0:00:28]}  Rfd7 {[%clk 0:00:02]} 32. Rxb7 {[%clk 0:00:17]}  Rxb7 {[%clk 0:00:01]} 33. Nf4 {[%clk 0:00:15]}  Qb2 {[%clk 0:00:02]} 34. h5 {[%clk 0:00:14]}  Qb4 {[%clk 0:00:01]} 35. Ng6+ {[%clk 0:00:13]}  Kh7 {[%clk 0:00:01]} 36. Qxf5 {[%clk 0:00:14]}  Qd4 {[%clk 0:00:01]} 37. Nf8+ {[%clk 0:00:13]} 1-0


[Site "https://www.chess.com"]